[Event "25th Abu Dhabi Master 2018"]
[Site "Abu Dhabi"]
[Date "2018.08.07"]
[Round "1"]
[White "Nguyen, Anh Khoi"]
[Black "Senthil, Maran K"]
[Result "1-0"]
[ECO "A41"]
[WhiteElo "2454"]
[BlackElo "2167"]
[Annotator "RC"]
[PlyCount "75"]
[EventDate "2018.08.05"]
[EventType "swiss"]
[EventCountry "UAE"]
[SourceTitle "playchess.com"]
[Source "ChessBase"]
[SourceQuality "1"]
[TimeControl "5400+30"]

1. d4 {[%emt 0:00:00]} d6 {[%emt 0:04:40]} 2. c4 {[%emt 0:00:08]} e5 {[%emt 0:00:10]} 3. Nc3 {[%emt 0:00:11]} exd4 {[%emt 0:00:37]} 4. Qxd4 {[%emt 0:00:11]} Nf6 {[%emt 0:00:18]} 5. b3 {[%emt 0:09:16]} Nc6 {[%emt 0:01:50]} 6. Qd2 {[%emt 0:00:17]} g6 {[%emt 0:03:22]} 7. Bb2 {[%emt 0:02:56]} Bg7 {[%emt 0:00:02]} 8. g3 {[%emt 0:04:29]} O-O {[%emt 0:01:09]} 9. Bg2 {[%emt 0:02:09]} a5 {[%emt 0:03:14]} 10. Nf3 {[%emt 0:03:28]} Bf5 {[%emt 0:06:02]} 11. Nh4 {[%emt 0:02:09]} Be6 {[%emt 0:03:43]} 12. Rc1 {[%emt 0:09:16]} Nd7 {[%emt 0:04:58]} 13. O-O {[%emt 0:04:45]} Nc5 {[%emt 0:02:47]} 14. Nd5 {[%emt 0:07:51]} Bxd5 {[%emt 0:05:12]} 15. cxd5 {[%emt 0:02:00]} Ne5 {[%emt 0:08:11]} 16. Bc3 {[%emt 0:10:43]} f5 {[%emt 0:05:54]} 17. Bxa5 {[%emt 0:12:47]} g5 {[%emt 0:03:31]} 18. Nf3 {[%emt 0:01:56]} Ne4 {[%emt 0:00:39]} 19. Qe1 {[%emt 0:00:26]} b6 {[%emt 0:00:43]} 20. Bb4 {[%emt 0:04:49]} Ng4 {[%emt 0:11:57]} 21. a4 {[%emt 0:04:18]} Qe7 {[%emt 0:07:47]} 22. e3 {[%emt 0:06:15]} Rae8 {[%emt 0:01:09]} 23. Rc4 {[%emt 0:01:38]} Qf7 {[%emt 0:02:53]} 24. Qc1 {[%emt 0:02:08]} Qh5 {[%emt 0:03:46]} 25. Rxc7 {[%emt 0:02:12]} f4 {[%emt 0:00:14]} 26. exf4 {[%emt 0:03:25]} Bd4 {[%emt 0:05:09]} 27. Qd1 {[%emt 0:02:14]} Bxf2+ {[%emt 0:09:27]} 28. Rxf2 {[%emt 0:00:01]} Nexf2 {[%emt 0:00:55]} 29. Qd4 {[%emt 0:00:33]} Rf6 {[%emt 0:01:15]} 30. fxg5 {[%emt 0:00:46]} Rf7 {[%emt 0:00:11]} 31. Rxf7 {[%emt 0:01:01]} Kxf7 {[%emt 0:00:45]} 32. h4 {[%emt 0:00:56]} Qg6 {[%emt 0:00:59]} 33. Bf1 {[%emt 0:00:25]} Ne4 {[%emt 0:01:35]} 34. Bd3 {[%emt 0:00:42]} Qf5 {[%emt 0:00:34]} 35. Nd2 {[%emt 0:00:36]} Ngf2 {[%emt 0:00:46]} 36. Nxe4 {[%emt 0:00:15]} Nxe4 {[%emt 0:00:05]} 37. Bxd6 {[%emt 0:00:32]} Qg4 {[%emt 0:01:25]} 38. Bf4 {[%emt 0:00:43]} 1-0

[Event "25th Abu Dhabi Master 2018"]
[Site "Abu Dhabi"]
[Date "2018.08.07"]
[Round "1"]
[White "Halvax, Georg"]
[Black "Ajay, Karthikeyan"]
[Result "1-0"]
[ECO "E73"]
[WhiteElo "2437"]
[BlackElo "2156"]
[Annotator "NA"]
[PlyCount "75"]
[EventDate "2018.08.05"]
[EventType "swiss"]
[EventCountry "UAE"]
[SourceTitle "playchess.com"]
[Source "ChessBase"]
[SourceQuality "1"]
[TimeControl "5400+30"]

1. d4 {[%emt 0:00:00]} Nf6 {[%emt 0:00:00]} 2. c4 {[%emt 0:00:00]} g6 {[%emt 0:00:00]} 3. Nc3 {[%emt 0:00:01]} Bg7 {[%emt 0:00:08]} 4. e4 {[%emt 0:00:19]} d6 {[%emt 0:00:11]} 5. Be2 {[%emt 0:00:21]} O-O {[%emt 0:01:03]} 6. Be3 {[%emt 0:00:18]} e5 {[%emt 0:01:14]} 7. d5 {[%emt 0:00:17]} Na6 {[%emt 0:03:14]} 8. g4 {[%emt 0:03:34]} Nc5 {[%emt 0:00:28]} 9. f3 {[%emt 0:00:39]} h5 {[%emt 0:00:38]} 10. h3 {[%emt 0:05:10]} c6 {[%emt 0:05:39]} 11. Qd2 {[%emt 0:03:10]} cxd5 {[%emt 0:07:37]} 12. cxd5 {[%emt 0:00:41]} Bd7 {[%emt 0:15:00]} 13. Nd1 {[%emt 0:28:20]} Rc8 {[%emt 0:12:24]} 14. Nf2 {[%emt 0:02:32]} Na4 {[%emt 0:20:14]} 15. Qb4 {[%emt 0:27:22]} Nc5 {[%emt 0:01:18]} 16. Qa3 {[%emt 0:00:10]} a5 {[%emt 0:01:33]} 17. Rc1 {[%emt 0:03:46]} b5 {[%emt 0:05:05]} 18. b4 {[%emt 0:07:04]} Na4 {[%emt 0:03:19]} 19. Rxc8 {[%emt 0:00:21]} Qxc8 {[%emt 0:00:47]} 20. bxa5 {[%emt 0:00:15]} Qc7 {[%emt 0:04:28]} 21. Qb4 {[%emt 0:03:13]} Ra8 {[%emt 0:02:05]} 22. Bd2 {[%emt 0:04:44]} h4 {[%emt 0:06:14]} 23. Bd3 {[%emt 0:02:38]} Nh7 {[%emt 0:03:54]} 24. Ne2 {[%emt 0:00:28]} Bf6 {[%emt 0:00:01]} 25. O-O {[%emt 0:01:39]} Bg5 {[%emt 0:00:10]} 26. f4 {[%emt 0:01:50]} exf4 {[%emt 0:00:02]} 27. Nxf4 {[%emt 0:00:06]} Nc5 {[%emt 0:02:29]} 28. Rc1 {[%emt 0:00:46]} Qa7 {[%emt 0:00:14]} 29. Kg2 {[%emt 0:01:49]} Nf6 {[%emt 0:00:50]} 30. Bb1 {[%emt 0:02:11]} Nb7 {[%emt 0:03:09]} 31. e5 {[%emt 0:00:46]} dxe5 {[%emt 0:01:06]} 32. Nxg6 {[%emt 0:00:27]} Bxd2 {[%emt 0:00:35]} 33. Qxd2 {[%emt 0:00:08]} fxg6 {[%emt 0:00:36]} 34. Qg5 {[%emt 0:00:01]} Be8 {[%emt 0:00:30]} 35. Bxg6 {[%emt 0:00:10]} Nh7 {[%emt 0:00:44]} 36. Bxh7+ {[%emt 0:00:10]} Kxh7 {[%emt 0:00:18]} 37. Rc7+ {[%emt 0:00:03]} Kh8 {[%emt 0:00:05]} 38. Qg7# {[%emt 0:00:05]} 1-0

[Event "25th Abu Dhabi Master 2018"]
[Site "Abu Dhabi"]
[Date "2018.08.07"]
[Round "1"]
[White "Sundararajan, Kidambi"]
[Black "Ivana Maria, Furtado"]
[Result "1-0"]
[ECO "E40"]
[WhiteElo "2433"]
[BlackElo "2146"]
[Annotator "NA RC"]
[PlyCount "41"]
[EventDate "2018.08.05"]
[EventType "swiss"]
[EventCountry "UAE"]
[SourceTitle "playchess.com"]
[Source "ChessBase"]
[SourceQuality "1"]
[TimeControl "5400+30"]

1. c4 {[%emt 0:00:00]} Nf6 {[%emt 0:00:41]} 2. Nc3 {[%emt 0:00:00]} e6 {[%emt 0:00:41]} 3. d4 {[%emt 0:00:25]} Bb4 {[%emt 0:00:50]} 4. e3 {[%emt 0:00:09]} d5 {[%emt 0:03:40]} 5. a3 {[%emt 0:00:21]} Bxc3+ {[%emt 0:03:13]} 6. bxc3 {[%emt 0:00:08]} O-O {[%emt 0:00:48]} 7. cxd5 {[%emt 0:00:13]} exd5 {[%emt 0:02:52]} 8. Bd3 {[%emt 0:00:11]} c5 {[%emt 0:11:55]} 9. Ne2 {[%emt 0:00:38]} c4 {[%emt 0:04:18]} 10. Bc2 {[%emt 0:00:27]} Ne4 {[%emt 0:08:30]} 11. f3 {[%emt 0:07:27]} Nd6 {[%emt 0:02:16]} 12. O-O {[%emt 0:05:28]} f5 {[%emt 0:08:11]} 13. Nf4 {[%emt 0:01:38]} Qa5 {[%emt 0:04:55]} 14. a4 {[%emt 0:02:31]} Rd8 {[%emt 0:08:33]} 15. Ba3 {[%emt 0:03:45]} Nc6 {[%emt 0:00:12]} 16. Qe1 {[%emt 0:04:17]} g5 {[%emt 0:04:07]} 17. Nh5 Ne8 {[%emt 0:04:56]} 18. e4 {[%emt 0:12:30]} dxe4 {[%emt 0:02:55]} 19. fxe4 {[%emt 0:00:10]} f4 {[%emt 0:00:16]} 20. e5 {[%emt 0:02:05]} Qd5 {[%emt 0:04:35]} 21. Qg3 {[%emt 0:06:47]} 1-0

[Event "25th Abu Dhabi Master 2018"]
[Site "Abu Dhabi"]
[Date "2018.08.07"]
[Round "1"]
[White "Sadhwani, Raunak"]
[Black "Isha, Sharma"]
[Result "1-0"]
[ECO "C41"]
[WhiteElo "2424"]
[BlackElo "2145"]
[Annotator "NA"]
[PlyCount "117"]
[EventDate "2018.08.05"]
[EventType "swiss"]
[EventCountry "UAE"]
[SourceTitle "playchess.com"]
[Source "ChessBase"]
[SourceQuality "1"]
[TimeControl "5400+30"]

1. e4 {[%emt 0:00:00]} d6 {[%emt 0:00:00]} 2. d4 {[%emt 0:00:00]} Nf6 {[%emt 0:00:00]} 3. Nc3 {[%emt 0:00:00]} e5 {[%emt 0:00:00]} 4. Nf3 {[%emt 0:00:00]} Nbd7 {[%emt 0:00:00]} 5. Bc4 {[%emt 0:00:00]} Be7 {[%emt 0:00:00]} 6. O-O {[%emt 0:00:00]} O-O {[%emt 0:00:06]} 7. a4 {[%emt 0:02:22]} c6 {[%emt 0:00:13]} 8. Ba2 {[%emt 0:00:05]} a5 {[%emt 0:00:33]} 9. Re1 {[%emt 0:01:45]} exd4 {[%emt 0:01:53]} 10. Nxd4 {[%emt 0:01:05]} Nc5 {[%emt 0:00:14]} 11. h3 {[%emt 0:00:32]} Re8 {[%emt 0:01:13]} 12. Nb3 {[%emt 0:06:18]} Ne6 {[%emt 0:05:20]} 13. Be3 {[%emt 0:01:45]} Bf8 {[%emt 0:01:14]} 14. Nd2 {[%emt 0:00:09]} Nc5 {[%emt 0:19:11]} 15. Qf3 {[%emt 0:15:01]} Be6 {[%emt 0:07:23]} 16. Bxe6 {[%emt 0:01:48]} Nxe6 {[%emt 0:00:59]} 17. Rad1 {[%emt 0:08:04]} Qc7 {[%emt 0:12:23]} 18. Nc4 {[%emt 0:15:30]} Nd7 {[%emt 0:00:36]} 19. Qg3 {[%emt 0:01:29]} Ne5 {[%emt 0:01:09]} 20. Na3 {[%emt 0:05:22]} f6 {[%emt 0:22:02]} 21. f4 {[%emt 0:02:45]} Nd7 {[%emt 0:00:50]} 22. Qf3 {[%emt 0:00:19]} Nec5 {[%emt 0:03:10]} 23. Bf2 {[%emt 0:00:36]} Kh8 {[%emt 0:01:01]} 24. Re2 {[%emt 0:05:17]} Qb6 {[%emt 0:07:04]} 25. Nc4 {[%emt 0:02:29]} Qc7 {[%emt 0:00:28]} 26. Red2 {[%emt 0:02:13]} Re6 {[%emt 0:06:02]} 27. b3 {[%emt 0:02:59]} Rd8 {[%emt 0:02:46]} 28. Kh1 {[%emt 0:02:04]} Rde8 {[%emt 0:02:45]} 29. Rd4 {[%emt 0:00:59]} Rd8 {[%emt 0:01:48]} 30. Bg3 {[%emt 0:01:19]} b6 {[%emt 0:03:30]} 31. R4d2 {[%emt 0:03:45]} Nb7 {[%emt 0:00:46]} 32. f5 {[%emt 0:02:54]} Ree8 {[%emt 0:00:07]} 33. Nxd6 {[%emt 0:00:16]} Bxd6 {[%emt 0:00:23]} 34. Bxd6 {[%emt 0:00:07]} Nxd6 {[%emt 0:00:03]} 35. Rxd6 {[%emt 0:00:08]} Ne5 {[%emt 0:00:37]} 36. Rxd8 {[%emt 0:00:04]} Rxd8 {[%emt 0:00:00]} 37. Qe2 {[%emt 0:01:10]} Kg8 {[%emt 0:00:00]} 38. Rxd8+ {[%emt 0:02:28]} Qxd8 {[%emt 0:00:00]} 39. Qd1 {[%emt 0:00:04]} Qe7 {[%emt 0:01:47]} 40. Ne2 {[%emt 0:00:40]} Nd7 {[%emt 0:01:02]} 41. Qd4 {[%emt 0:08:40]} Nc5 {[%emt 0:00:31]} 42. Nc3 {[%emt 0:00:15]} Kf8 {[%emt 0:00:42]} 43. g3 {[%emt 0:00:14]} g6 {[%emt 0:00:38]} 44. Kg2 {[%emt 0:01:30]} Kg7 {[%emt 0:00:44]} 45. g4 {[%emt 0:00:17]} gxf5 {[%emt 0:00:19]} 46. exf5 {[%emt 0:00:53]} Qe1 {[%emt 0:00:24]} 47. g5 {[%emt 0:01:06]} Qe5 {[%emt 0:00:54]} 48. Qxe5 {[%emt 0:00:08]} fxe5 {[%emt 0:00:04]} 49. Kf3 {[%emt 0:00:09]} Kf7 {[%emt 0:00:50]} 50. Ne4 {[%emt 0:00:12]} Nb7 {[%emt 0:00:31]} 51. h4 {[%emt 0:00:10]} b5 {[%emt 0:00:19]} 52. h5 {[%emt 0:00:05]} bxa4 {[%emt 0:00:17]} 53. bxa4 {[%emt 0:00:11]} Kg7 {[%emt 0:00:05]} 54. Kg4 {[%emt 0:00:06]} Nd8 {[%emt 0:00:21]} 55. f6+ {[%emt 0:00:05]} Kg8 {[%emt 0:00:25]} 56. Kf5 {[%emt 0:00:05]} Nf7 {[%emt 0:00:05]} 57. g6 {[%emt 0:00:04]} hxg6+ {[%emt 0:00:18]} 58. hxg6 {[%emt 0:00:04]} Nh8 {[%emt 0:00:04]} 59. Ng5 {[%emt 0:00:11]} 1-0

[Event "25th Abu Dhabi Master 2018"]
[Site "Abu Dhabi"]
[Date "2018.08.07"]
[Round "1"]
[White "G, Akash"]
[Black "Sultan, Ibrahim"]
[Result "1-0"]
[ECO "C11"]
[WhiteElo "2410"]
[BlackElo "2140"]
[Annotator "NA"]
[PlyCount "37"]
[EventDate "2018.08.05"]
[EventType "swiss"]
[EventCountry "UAE"]
[SourceTitle "playchess.com"]
[Source "ChessBase"]
[SourceQuality "1"]
[TimeControl "5400+30"]

1. e4 {[%emt 0:00:00]} e6 {[%emt 0:00:00]} 2. d4 {[%emt 0:00:00]} d5 {[%emt 0:00:00]} 3. Nc3 {[%emt 0:00:00]} Nf6 {[%emt 0:00:01]} 4. e5 {[%emt 0:01:04]} Nfd7 {[%emt 0:00:13]} 5. f4 {[%emt 0:00:06]} c5 {[%emt 0:00:06]} 6. Nf3 {[%emt 0:00:08]} Be7 {[%emt 0:03:21]} 7. Be3 {[%emt 0:00:30]} b6 {[%emt 0:00:08]} 8. Qd2 {[%emt 0:03:35]} O-O {[%emt 0:00:20]} 9. O-O-O {[%emt 0:02:03]} c4 {[%emt 0:04:40]} 10. f5 {[%emt 0:03:44]} b5 {[%emt 0:09:35]} 11. f6 {[%emt 0:03:27]} gxf6 {[%emt 0:01:34]} 12. Bh6 {[%emt 0:00:30]} fxe5 {[%emt 0:10:10]} 13. dxe5 {[%emt 0:05:25]} Qa5 {[%emt 0:02:14]} 14. Qf4 {[%emt 0:09:02]} f5 {[%emt 0:00:38]} 15. g4 {[%emt 0:10:23]} Rf7 {[%emt 0:08:08]} 16. Rg1 {[%emt 0:02:01]} Kh8 {[%emt 0:03:44]} 17. gxf5 {[%emt 0:00:33]} Qd8 18. Rh1 Bf8 19. Ng1 1-0

[Event "25th Abu Dhabi Master 2018"]
[Site "Abu Dhabi"]
[Date "2018.08.07"]
[Round "1"]
[White "Raghunandan, Kaumandur Srihari"]
[Black "Al Hosani, Omran"]
[Result "1-0"]
[ECO "A05"]
[WhiteElo "2404"]
[BlackElo "2135"]
[Annotator "NA"]
[PlyCount "119"]
[EventDate "2018.08.05"]
[EventType "swiss"]
[EventCountry "UAE"]
[SourceTitle "playchess.com"]
[Source "ChessBase"]
[SourceQuality "1"]
[TimeControl "5400+30"]

1. Nf3 {[%emt 0:00:00]} Nf6 {[%emt 0:00:00]} 2. c4 {[%emt 0:00:00]} g6 {[%emt 0:00:00]} 3. Nc3 {[%emt 0:00:07]} d5 {[%emt 0:00:00]} 4. cxd5 {[%emt 0:00:13]} Nxd5 {[%emt 0:00:00]} 5. Qb3 {[%emt 0:00:36]} Nb6 {[%emt 0:08:39]} 6. d4 {[%emt 0:00:26]} Bg7 {[%emt 0:00:44]} 7. Bf4 {[%emt 0:04:20]} O-O {[%emt 0:04:19]} 8. Rd1 {[%emt 0:00:37]} Nc6 {[%emt 0:32:13]} 9. d5 {[%emt 0:01:54]} Na5 {[%emt 0:01:51]} 10. Qc2 {[%emt 0:01:56]} Nac4 {[%emt 0:06:49]} 11. Bc1 {[%emt 0:00:08]} Bg4 {[%emt 0:01:08]} 12. e4 {[%emt 0:17:06]} Qd6 {[%emt 0:05:12]} 13. Be2 {[%emt 0:01:51]} Qb4 {[%emt 0:03:26]} 14. O-O {[%emt 0:00:39]} c6 {[%emt 0:00:24]} 15. dxc6 {[%emt 0:01:26]} bxc6 {[%emt 0:00:06]} 16. Nd4 {[%emt 0:12:33]} Bxe2 {[%emt 0:00:49]} 17. Ncxe2 {[%emt 0:00:06]} e5 {[%emt 0:05:33]} 18. Nf3 {[%emt 0:03:48]} Nd6 {[%emt 0:06:41]} 19. Ng3 {[%emt 0:08:01]} Qc4 {[%emt 0:03:29]} 20. Qxc4 {[%emt 0:05:54]} Ndxc4 {[%emt 0:00:02]} 21. b3 {[%emt 0:00:13]} Na5 {[%emt 0:00:01]} 22. Ba3 {[%emt 0:08:04]} Rfe8 {[%emt 0:00:41]} 23. Rc1 {[%emt 0:01:22]} Rac8 {[%emt 0:00:11]} 24. Rc3 {[%emt 0:01:18]} f5 {[%emt 0:04:20]} 25. Rfc1 {[%emt 0:02:04]} Bh6 {[%emt 0:06:39]} 26. Re1 {[%emt 0:02:36]} f4 {[%emt 0:00:21]} 27. Nf1 {[%emt 0:00:11]} Nb7 {[%emt 0:01:46]} 28. Rec1 {[%emt 0:01:21]} Re6 {[%emt 0:00:31]} 29. h4 {[%emt 0:02:44]} Nd8 {[%emt 0:02:26]} 30. N1h2 {[%emt 0:10:21]} Nf7 {[%emt 0:00:17]} 31. Ng4 {[%emt 0:00:30]} Bg7 {[%emt 0:00:55]} 32. Ng5 {[%emt 0:00:47]} Nxg5 {[%emt 0:00:07]} 33. hxg5 {[%emt 0:00:05]} a5 {[%emt 0:04:57]} 34. Rc5 {[%emt 0:03:56]} a4 {[%emt 0:00:30]} 35. Ra5 {[%emt 0:00:13]} axb3 {[%emt 0:00:34]} 36. axb3 {[%emt 0:00:12]} Ra8 {[%emt 0:00:59]} 37. Rxa8+ {[%emt 0:00:16]} Nxa8 {[%emt 0:00:17]} 38. Rd1 {[%emt 0:01:00]} Nc7 {[%emt 0:00:39]} 39. Rd8+ {[%emt 0:03:35]} Re8 {[%emt 0:00:23]} 40. Rd7 {[%emt 0:00:16]} Ra8 {[%emt 0:01:29]} 41. Be7 {[%emt 0:06:48]} Ne8 {[%emt 0:00:24]} 42. Bf6 {[%emt 0:00:26]} h5 {[%emt 0:00:22]} 43. Bxg7 {[%emt 0:00:32]} hxg4 {[%emt 0:00:28]} 44. Bxe5 {[%emt 0:00:04]} f3 {[%emt 0:00:13]} 45. gxf3 {[%emt 0:00:20]} gxf3 {[%emt 0:00:01]} 46. Kh2 {[%emt 0:01:14]} Ra5 {[%emt 0:00:05]} 47. Bf4 {[%emt 0:00:31]} Rb5 {[%emt 0:00:06]} 48. Rd3 {[%emt 0:00:36]} Rb4 {[%emt 0:00:43]} 49. Re3 {[%emt 0:00:34]} Ng7 {[%emt 0:00:05]} 50. Kg3 {[%emt 0:00:26]} Ne6 {[%emt 0:00:05]} 51. Kxf3 {[%emt 0:00:16]} Nd4+ {[%emt 0:00:13]} 52. Kg4 {[%emt 0:00:29]} Nxb3 {[%emt 0:00:29]} 53. Bd6 {[%emt 0:00:20]} c5 {[%emt 0:00:21]} 54. Kf4 {[%emt 0:00:49]} Kf7 {[%emt 0:01:47]} 55. Ke5 {[%emt 0:00:06]} Nd2 {[%emt 0:01:15]} 56. Bxc5 {[%emt 0:00:39]} Rb5 {[%emt 0:00:33]} 57. Rc3 {[%emt 0:00:12]} Rb8 {[%emt 0:00:26]} 58. Kf4 {[%emt 0:00:40]} Ke6 {[%emt 0:00:42]} 59. Rd3 {[%emt 0:00:34]} Nc4 {[%emt 0:00:14]} 60. Rd4 {[%emt 0:00:08] Kd5} 1-0

[Event "25th Abu Dhabi Master 2018"]
[Site "Abu Dhabi"]
[Date "2018.08.07"]
[Round "1"]
[White "Muthaiah, Al"]
[Black "Hakobyan, Eduard"]
[Result "1-0"]
[ECO "D00"]
[WhiteElo "2391"]
[BlackElo "2134"]
[Annotator "NA"]
[PlyCount "67"]
[EventDate "2018.08.05"]
[EventType "swiss"]
[EventCountry "UAE"]
[SourceTitle "playchess.com"]
[Source "ChessBase"]
[SourceQuality "1"]
[TimeControl "5400+30"]

1. d4 {[%emt 0:00:00]} d5 {[%emt 0:00:00]} 2. Bf4 {[%emt 0:00:00]} Nf6 {[%emt 0:00:00]} 3. e3 {[%emt 0:00:15]} Bf5 {[%emt 0:00:14]} 4. Bd3 {[%emt 0:00:32]} Bxd3 {[%emt 0:00:28]} 5. cxd3 {[%emt 0:00:15]} e6 {[%emt 0:00:19]} 6. Qb3 {[%emt 0:01:51]} Qc8 {[%emt 0:04:56]} 7. Nc3 {[%emt 0:00:40]} c6 {[%emt 0:01:02]} 8. Rc1 {[%emt 0:05:56]} Na6 {[%emt 0:00:52]} 9. Nf3 {[%emt 0:01:21]} Be7 {[%emt 0:02:52]} 10. O-O {[%emt 0:00:44]} O-O {[%emt 0:00:09]} 11. e4 {[%emt 0:11:14]} Nb4 {[%emt 0:07:35]} 12. Qd1 {[%emt 0:02:45]} dxe4 {[%emt 0:05:05]} 13. dxe4 {[%emt 0:00:14]} Qd8 {[%emt 0:00:36]} 14. Qe2 {[%emt 0:05:54]} Qa5 {[%emt 0:03:29]} 15. a3 {[%emt 0:02:19]} Na6 {[%emt 0:00:18]} 16. Ne5 {[%emt 0:01:59]} Nb8 {[%emt 0:06:44]} 17. b4 {[%emt 0:21:05]} Qd8 {[%emt 0:06:35]} 18. Nc4 {[%emt 0:07:30]} Ne8 {[%emt 0:08:09]} 19. Rfd1 {[%emt 0:04:31]} Nd6 {[%emt 0:03:11]} 20. Bxd6 {[%emt 0:07:12]} Bxd6 {[%emt 0:00:07]} 21. d5 {[%emt 0:00:21]} exd5 {[%emt 0:02:44]} 22. exd5 {[%emt 0:00:13]} Qc7 {[%emt 0:14:26]} 23. Nxd6 {[%emt 0:02:57]} Qxd6 {[%emt 0:00:13]} 24. dxc6 {[%emt 0:00:09]} Qxc6 {[%emt 0:00:09]} 25. Nd5 {[%emt 0:00:12]} Qh6 {[%emt 0:05:28]} 26. Nc7 {[%emt 0:01:54]} Nc6 {[%emt 0:04:54]} 27. Nxa8 {[%emt 0:00:24]} Rxa8 {[%emt 0:00:02]} 28. Qe3 {[%emt 0:02:03]} Qh5 {[%emt 0:01:45]} 29. Qc5 {[%emt 0:01:51]} Qh4 {[%emt 0:01:14]} 30. b5 {[%emt 0:04:29]} Nd8 {[%emt 0:00:08]} 31. Qd4 {[%emt 0:00:14]} Qg5 {[%emt 0:00:51]} 32. h4 {[%emt 0:00:19]} Qe7 33. Qd7 {[%emt 0:00:07]} Qf8 {[%emt 0:00:35]} 34. Rc8 1-0

[Event "25th Abu Dhabi Master 2018"]
[Site "Abu Dhabi"]
[Date "2018.08.07"]
[Round "1"]
[White "Krishna Teja, N."]
[Black "Villanueva, Nelson"]
[Result "1-0"]
[ECO "D97"]
[WhiteElo "2389"]
[BlackElo "2133"]
[Annotator "NA"]
[PlyCount "81"]
[EventDate "2018.08.05"]
[EventType "swiss"]
[EventCountry "UAE"]
[SourceTitle "playchess.com"]
[Source "ChessBase"]
[SourceQuality "1"]
[TimeControl "5400+30"]

1. d4 Nf6 2. c4 g6 3. Nc3 d5 4. Nf3 Bg7 5. Qb3 dxc4 6. Qxc4 O-O 7. e4 Nc6 8. h3 Nd7 9. Be3 Nb6 10. Qc5 f5 11. e5 e6 12. Rd1 a6 13. Be2 h6 14. d5 exd5 15. Nxd5 Nxd5 16. Bc4 Nce7 17. Bxd5+ Nxd5 18. Rxd5 Qe8 19. Qxc7 Be6 20. Rd6 f4 21. Bd2 Rc8 22. Qxb7 Bc4 23. Bc3 Bb5 24. Qd5+ Kh7 25. Kd2 Bc4 26. Qe4 Bxa2 27. Ra1 Rd8 28. Qd3 Bb3 29. Raxa6 Rxd6 30. Rxd6 Rf5 31. Rxg6 Qxg6 32. Nh4 Qb6 33. Qxf5+ Kg8 34. Qxf4 Qd8+ 35. Qd4 Qg5+ 36. Ke2 Qc1 37. Qd8+ Bf8 38. Qd3 Bc5 39. Nf5 Qf4 40. Qd8+ Bf8 41. Ne7+ 1-0

[Event "25th Abu Dhabi Master 2018"]
[Site "Abu Dhabi"]
[Date "2018.08.07"]
[Round "1"]
[White "Raetsky, Alexander"]
[Black "Byron, Alan M"]
[Result "1-0"]
[ECO "A45"]
[WhiteElo "2380"]
[BlackElo "2132"]
[Annotator "NA"]
[PlyCount "81"]
[EventDate "2018.08.05"]
[EventType "swiss"]
[EventCountry "UAE"]
[SourceTitle "playchess.com"]
[Source "ChessBase"]
[SourceQuality "1"]
[TimeControl "5400+30"]

1. d4 {[%emt 0:00:18]} Nf6 {[%emt 0:00:00]} 2. g3 {[%emt 0:00:09]} g6 {[%emt 0:00:29]} 3. Bg2 {[%emt 0:00:06]} Bg7 {[%emt 0:00:07]} 4. e4 {[%emt 0:00:05]} d6 {[%emt 0:00:09]} 5. Nc3 {[%emt 0:00:06]} O-O {[%emt 0:00:56]} 6. Nge2 {[%emt 0:00:11]} e5 {[%emt 0:03:31]} 7. h3 {[%emt 0:02:19]} Nc6 {[%emt 0:05:20]} 8. Be3 {[%emt 0:00:21]} a6 {[%emt 0:06:50]} 9. O-O {[%emt 0:05:04]} b5 {[%emt 0:11:16]} 10. d5 {[%emt 0:03:58]} Ne7 {[%emt 0:01:06]} 11. b4 {[%emt 0:03:26]} Nh5 {[%emt 0:05:24]} 12. a4 {[%emt 0:02:35]} Bd7 {[%emt 0:13:17]} 13. axb5 {[%emt 0:09:26]} axb5 {[%emt 0:00:09]} 14. Qd3 {[%emt 0:02:09]} f5 {[%emt 0:01:22]} 15. Rxa8 {[%emt 0:07:14]} Qxa8 {[%emt 0:00:03]} 16. Bg5 {[%emt 0:01:07]} Bf6 {[%emt 0:08:51]} 17. Bh6 {[%emt 0:05:50]} Rb8 {[%emt 0:00:28]} 18. Bd2 {[%emt 0:11:50]} Bg7 {[%emt 0:02:08]} 19. f4 {[%emt 0:04:51]} Kh8 {[%emt 0:13:05]} 20. Kh2 {[%emt 0:00:58]} Qa3 {[%emt 0:07:51]} 21. Rb1 {[%emt 0:01:33]} Qa6 {[%emt 0:03:59]} 22. Rb2 {[%emt 0:09:52]} Nf6 {[%emt 0:01:43]} 23. Ra2 {[%emt 0:01:42]} fxe4 {[%emt 0:01:52]} 24. Rxa6 {[%emt 0:12:07]} exd3 {[%emt 0:00:02]} 25. cxd3 {[%emt 0:00:01]} Ne8 {[%emt 0:02:11]} 26. fxe5 {[%emt 0:04:01]} Bxe5 {[%emt 0:00:30]} 27. d4 {[%emt 0:00:03]} Bg7 {[%emt 0:00:37]} 28. g4 {[%emt 0:00:15]} Nc8 {[%emt 0:04:34]} 29. Ne4 {[%emt 0:01:18]} Nb6 {[%emt 0:00:35]} 30. Ng5 {[%emt 0:00:15]} Nc4 {[%emt 0:01:39]} 31. Bc1 {[%emt 0:00:17]} Bc8 {[%emt 0:01:49]} 32. Ra7 {[%emt 0:00:26]} Rb7 {[%emt 0:01:44]} 33. Ra2 {[%emt 0:01:44]} Kg8 {[%emt 0:01:46]} 34. Ne6 {[%emt 0:00:37]} Bf6 {[%emt 0:00:06]} 35. g5 {[%emt 0:05:58]} Be7 {[%emt 0:00:01]} 36. h4 {[%emt 0:00:05]} Rb8 {[%emt 0:00:26]} 37. Nc3 {[%emt 0:01:51]} c6 {[%emt 0:01:58]} 38. Ra7 {[%emt 0:00:19]} Bf8 {[%emt 0:00:22]} 39. Nxf8 {[%emt 0:01:04]} Kxf8 {[%emt 0:00:12]} 40. dxc6 {[%emt 0:00:05]} Be6 {[%emt 0:00:59]} 41. Rxh7 {[%emt 0:01:37]} 1-0

[Event "25th Abu Dhabi Master 2018"]
[Site "Abu Dhabi"]
[Date "2018.08.07"]
[Round "1"]
[White "Kathmale, Sameer"]
[Black "Al Hajiri, Bader"]
[Result "1-0"]
[ECO "C42"]
[WhiteElo "2367"]
[BlackElo "2120"]
[Annotator "NA"]
[PlyCount "49"]
[EventDate "2018.08.05"]
[EventType "swiss"]
[EventCountry "UAE"]
[SourceTitle "playchess.com"]
[Source "ChessBase"]
[SourceQuality "1"]
[TimeControl "5400+30"]

1. e4 {[%emt 0:00:56]} e5 {[%emt 0:00:33]} 2. Nf3 {[%emt 0:00:05]} Nf6 {[%emt 0:01:31]} 3. Nxe5 {[%emt 0:00:11]} d6 {[%emt 0:00:15]} 4. Nf3 {[%emt 0:00:07]} Nxe4 {[%emt 0:00:06]} 5. Bd3 {[%emt 0:00:07]} Nf6 {[%emt 0:08:25]} 6. O-O {[%emt 0:00:17]} Be7 {[%emt 0:00:07]} 7. c3 {[%emt 0:01:12]} Nc6 {[%emt 0:00:37]} 8. Bc2 {[%emt 0:00:57]} Bg4 {[%emt 0:01:02]} 9. h3 {[%emt 0:00:33]} Bh5 {[%emt 0:00:11]} 10. d4 {[%emt 0:00:40]} Qd7 {[%emt 0:01:48]} 11. Re1 {[%emt 0:09:58]} O-O-O {[%emt 0:06:54]} 12. Ba4 {[%emt 0:06:08]} d5 {[%emt 0:09:29]} 13. Bxc6 {[%emt 0:14:35]} bxc6 {[%emt 0:00:10]} 14. Nbd2 {[%emt 0:02:36]} Bd6 {[%emt 0:00:53]} 15. Qa4 {[%emt 0:05:18]} Rde8 {[%emt 0:06:29]} 16. Ne5 {[%emt 0:06:14]} Qf5 {[%emt 0:11:17]} 17. Nb3 {[%emt 0:20:27]} Ne4 {[%emt 0:09:40]} 18. Qa6+ {[%emt 0:02:02]} Kd8 {[%emt 0:00:19]} 19. Nxc6+ {[%emt 0:00:20]} Kd7 {[%emt 0:00:16]} 20. Be3 {[%emt 0:00:29]} Re6 {[%emt 0:10:42]} 21. Qb5 {[%emt 0:01:33]} Kc8 {[%emt 0:10:40]} 22. Nxa7+ {[%emt 0:03:15]} Kd8 {[%emt 0:00:01]} 23. Nc6+ {[%emt 0:00:12]} Kc8 {[%emt 0:00:10]} 24. Nc5 {[%emt 0:08:20]} Bxc5 {[%emt 0:14:22]} 25. dxc5 {[%emt 0:01:39]} 1-0